Cogmind - Beta 13 @@@ ROGUE MODE // 2024.05.19 @ 17:15:48 Player: Crackrock_Steady Result: Destroyed by G-47 Trooper with Particle Gun Performance ------------- Evolutions (3) 1500 Regions Visited (5) 1000 Robots Destroyed (66) 330 Value Destroyed (1819) 1819 Prototype IDs (3) 60 Alien Tech Used (0) 0 Bonus (16) 16 TOTAL SCORE: 4725 Bonus ------- High Alert Combat Kills 16 Cogmind --------- Core Integrity 0/700 Matter 161/300 Energy 98/100 System Corruption 6% Temperature Cool (21) Movement Core (250) Ox4 Location -7/Factory Parts ------- > --- POWER (1) -------- (None) > --- PROPULSION (2) --- (None) > --- UTILITY (8) ------ Medium Storage Unit Visual Processing Unit Improved Signal Interpreter Target Analyzer Core Analyzer > --- WEAPON (2) ------- Improved Light Cannon > --- INVENTORY (10) --- Small Storage Unit Advanced Visual Processing Unit Hacking Suite Heavy Laser Peak State ------------ > --- POWER ------------ Light Nuclear Core > --- PROPULSION ------- Carbon-fiber Leg Titanium Leg > --- UTILITY ---------- Small Storage Unit Visual Processing Unit Experimental Sensor Array Improved Signal Interpreter Improved Terrain Scanner Core Analyzer Energy Filter Improved Medium Armor Plating > --- WEAPON ----------- Heavy Laser High-powered Shotgun > --- INVENTORY -------- Micro Nuclear Core Advanced Visual Processing Unit Target Analyzer Hacking Suite Beam Rifle Heavy Assault Rifle Rocket Launcher Flail [Rating: 48] Favorites ----------- Power Light Ion Engine Engine Light Ion Engine Power Core Light Nuclear Core Propulsion Aluminum Leg Leg Aluminum Leg Wheel Wheel Utility Small Storage Unit Device Seismic Detector Storage Small Storage Unit Processor Visual Processing Unit Protection Improved Medium Armor Plating Weapon EM Pulse Gun Energy Gun EM Pulse Gun Energy Cannon Cooled Particle Cannon Ballistic Gun High-powered Shotgun Ballistic Cannon Improved Light Cannon Launcher Grenade Launcher Impact Weapon Flail Build | -11 -10 -10 -9 -8 -7 ------- Run | Yrd Mat Min Mat Mat Fac Slots Evolved 6 | . . . 2 2 2 Power . | . . . . . . Propulsion . | . . . . . . Utility 6 | . . . 2 2 2 Weapon . | . . . . . . Parts Attached 56 | 6 11 2 8 8 21 Power 7 | 1 2 . 2 . 2 Engine 5 | 1 2 . 2 . . Core 2 | . . . . . 2 Reactor . | . . . . . . Propulsion 10 | 2 1 1 2 2 2 Treads . | . . . . . . Leg 8 | 2 . . 2 2 2 Wheel 2 | . 1 1 . . . Hover . | . . . . . . Flight . | . . . . . . Utility 16 | 2 . 1 3 2 8 Device 6 | 1 . 1 3 . 1 Storage 2 | 1 . . . . 1 Processor 5 | . . . . 2 3 Hackware . | . . . . . . Protection 3 | . . . . . 3 Artifact . | . . . . . . Weapon 23 | 1 8 . 1 4 9 Energy Gun 9 | 1 4 . 1 2 1 Energy Cannon 1 | . . . . . 1 Ballistic Gun 4 | . 1 . . 1 2 Ballistic Cannon 2 | . . . . . 2 Launcher 6 | . 3 . . 1 2 Special Weapon . | . . . . . . Impact Weapon 1 | . . . . . 1 Slashing Weapon . | . . . . . . Piercing Weapon . | . . . . . . Special Melee Weapon . | . . . . . . Unidentified Prototypes 3 | . . . 2 . 1 Corrupted Parts 1 | . . . . . 1 System Corruption 2 | . . . . . 2 Parts Lost 23 | 1 4 . 1 . 17 Power 3 | . 1 . . . 2 Propulsion 7 | . 2 . 1 . 4 Utility 5 | . . . . . 5 Weapon 8 | 1 1 . . . 6 Highest Loss Streak 9 | 1 2 . 1 . 9 To Critical Strikes . | . . . . . . Average Slot Usage (%) 92 | . 83 94 97 93 94 Engine 8 | . 13 14 11 9 3 Core 1 | . . . . . 3 Leg 11 | . 9 . 11 18 12 Wheel 4 | . 3 22 9 . . Device 21 | . 14 14 32 27 19 Storage 9 | . 14 14 11 9 7 Processor 12 | . . . . 11 24 Protection 2 | . . . . . 6 Energy Gun 10 | . 18 14 10 9 6 Ballistic Gun 8 | . 6 14 11 9 5 Naked Turns . | . . . . . . Heaviest Build 31 | 11 14 14 21 21 31 Greatest Support 32 | 20 20 20 20 32 32 Greatest Overweight (x) 10 | . 4 1 1 . 10 Average Overweight (x) . | . 1 . . . . Largest Inventory Capacity 10 | 8 8 8 8 8 10 Average Capacity 8 | 7 8 8 8 8 8 Most Carried 10 | 5 7 8 8 8 10 Average Carried 5 | 4 4 7 6 5 7 Final Capacity 10 | 8 8 8 8 8 10 Final Carried 8 | 5 6 8 5 8 4 Class Distribution -------------------- 51% | Mutant 25% | Skirmisher 15% | Scavenger-Mutant 6% | Scavenger-Skirmisher Dominant Class ---------------- Mutant | -10/Materials Scavenger-Mutant | -10/Mines Scavenger-Mutant | -9/Materials Skirmisher | -8/Materials Skirmisher | -7/Factory Resources | -11 -10 -10 -9 -8 -7 ----------- Run | Yrd Mat Min Mat Mat Fac Matter Collected 1091 | 260 180 23 100 84 444 Remotely . | . . . . . . Salvage Created 1913 | 82 357 30 461 94 889 Parts 130 | 5 32 3 25 9 56 Haulers Intercepted . | . . . . . . Recyclers Shooed . | . . . . . . Parts Field Recycled . | . . . . . . Retrieved Matter . | . . . . . . Parts Self-Destructed . | . . . . . . Prevented . | . . . . . . Kills | -11 -10 -10 -9 -8 -7 ------- Run | Yrd Mat Min Mat Mat Fac Combat Hostiles Destroyed 53 | . 14 . 11 6 22 Guns 34 | . 6 . 11 2 15 Cannons 1 | . . . . . 1 AOE 18 | . 8 . . 4 6 Classes Destroyed 11 | 2 3 . 1 2 3 Worker 5 | . . . . 1 4 Tunneler 4 | 1 2 1 . . . Recycler 2 | 1 1 . . . . Operator 2 | . 1 . . . 1 Swarmer 21 | . 9 . . 4 8 Grunt 26 | . 5 . 10 1 10 Brawler 1 | . . . . . 1 Duelist 1 | . . . 1 . . Sentry 2 | . . . . 1 1 Hunter 1 | . . . . . 1 Programmer 1 | . . . . . 1 Best Kill Streak 9 | 2 9 1 3 5 7 Combat Bots Only 8 | . 8 . 3 4 5 Max Kills in Single Turn 3 | 1 2 1 1 2 3 Gunslinging . | . . . . . . Exploded 3 | . 2 . . 2 3 Melee . | . . . . . . Uniques/NPCs Destroyed . | . . . . . . Combat | -11 -10 -10 -9 -8 -7 -------- Run | Yrd Mat Min Mat Mat Fac Hostile Shots Fired 470 | 8 60 . 62 22 318 Missed 154 | 2 18 . 20 2 112 Damage Taken 4084 | 289 391 . 545 229 2630 Core 1035 | 79 91 . 110 50 705 Absorbed by Shields . | . . . . . . Regen/Repaired (Parts) 42 | . . . 42 . . Core Remaining (%) 65 | 68 . 32 72 90 . Volleys Fired 166 | 6 32 3 41 14 70 Largest 2 | 1 2 2 2 2 2 Hottest 99 | 40 90 70 70 81 99 Shots Fired 303 | 6 61 6 82 25 123 Gun 264 | 6 53 6 82 22 95 Cannon 24 | . . . . . 24 Launcher 15 | . 8 . . 3 4 Special . | . . . . . . Kinetic 111 | . 10 3 41 11 46 Thermal 171 | . 43 3 41 11 73 Explosive 15 | . 8 . . 3 4 Electromagnetic 6 | 6 . . . . . Robot Hit Streak 15 | 2 5 1 11 5 15 Robot Miss Streak 7 | 3 6 2 3 5 7 Penetration Max . | . . . . . . Secondary Targets 1 | . . . . . 1 Max Gunslinging Chain 1 | . . . . . 1 Shots Hit Robots 180 | 3 27 2 60 12 76 Core Hits 135 | 3 31 1 26 13 61 Critical Kills 1 | . . . . . 1 Critical Parts Destroyed 1 | . . . . 1 . Critical Strikes 8 | . 1 . 1 1 5 Burn 6 | . 1 . 1 . 4 Destroy 2 | . . . . 1 1 Melee Attacks 4 | . . . . . 4 Impact 4 | . . . . . 4 Slashing . | . . . . . . Piercing . | . . . . . . Sneak Attacks . | . . . . . . Combat Hostiles . | . . . . . . Follow-up Attacks . | . . . . . . Damage Inflicted 4347 | 54 765 20 657 616 2235 Guns 2303 | 54 303 20 639 204 1083 Cannons 459 | . . . . . 459 Explosions 1504 | . 462 . . 412 630 Melee 57 | . . . . . 57 Ramming 24 | . . . 18 . 6 Kinetic 1073 | . 43 7 231 147 645 Thermal 1635 | . 260 13 408 57 897 Explosive 1395 | . 462 . . 412 521 Electromagnetic 163 | 54 . . . . 109 Impact 57 | . . . . . 57 Slashing . | . . . . . . Piercing . | . . . . . . Highest Corruption 6 | . . . . . 6 Average Corruption 3 | . . . . . 3 Corruption Purged . | . . . . . . Corruption Blocked 5 | . . . . . 5 Effects 8 | . . . . . 8 Message Errors 2 | . . . . . 2 Matter Fused 2 | . . . . . 2 Heat Flow Errors 1 | . . . . . 1 Energy Discharges 1 | . . . . . 1 Parts Rejected 1 | . . . . . 1 Data Loss (minor) 1 | . . . . . 1 Overload Shots . | . . . . . . Overflow Damage 79 | . 1 . . 55 23 Projectiles . | . . . . . . Explosions 79 | . 1 . . 55 23 Melee . | . . . . . . Knockbacks 1 | . . . . . 1 Impact 1 | . . . . . 1 Kinetic . | . . . . . . Secondary . | . . . . . . Self-Inflicted Damage 57 | . . . . . 57 Shots 1 | . . . . . 1 Rammed . | . . . . . . Targets Rammed 5 | . . . 4 . 1 Kicked 5 | . . . 4 . 1 Crushed . | . . . . . . Highest Temperature 431 | . 144 70 152 51 431 Average Temperature 67 | . 37 33 61 18 94 Received Heat Transfer 1263 | . 108 . 228 72 855 Effects 4 | . . . . . 4 Energy Bleed 1 | . . . . . 1 Matter Decay 3 | . . . . . 3 Siege Activations . | . . . . . . Robots Corrupted . | . . . . . . Combat Hostiles . | . . . . . . Parts Fried . | . . . . . . Impact Corruptions . | . . . . . . Robots Melted . | . . . . . . Combat Hostiles . | . . . . . . Parts Melted 6 | . 3 . 1 . 2 Heat Transferred 3984 | . 803 37 1221 148 1775 Parts Sabotaged . | . . . . . . Parts Stolen . | . . . . . . Parts Stripped . | . . . . . . Power Chain Reactions . | . . . . . . Alert | -11 -10 -10 -9 -8 -7 ------- Run | Yrd Mat Min Mat Mat Fac Peak Influence 433 | 10 433 103 271 284 405 Initial 98 | . . 98 39 57 44 Average 88 | 1 255 101 141 131 129 Maximum Alert Level 2 | . 2 . 1 1 2 Low Security (%) 83 | 100 29 100 61 74 86 Level 1 14 | . 49 . 38 25 13 Level 2 2 | . 21 . . . . Level 3 . | . . . . . . Level 4 . | . . . . . . Level 5 . | . . . . . . High Security . | . . . . . . Max Security . | . . . . . . Squads Dispatched 9 | . 2 . 2 . 5 Investigation 4 | . . . 2 . 2 Extermination 1 | . . . . . 1 Reinforcement 3 | . 2 . . . 1 Assault . | . . . . . . Garrison 1 | . . . . . 1 Intercept . | . . . . . . Searches Triggered . | . . . . . . Construction Impeded . | . . . . . . Haulers Reinforced 1 | . . . . . 1 Active Scanning Responses . | . . . . . . Cargo Convoy Interrupts 1 | . . . . . 1 Stealth | -11 -10 -10 -9 -8 -7 --------- Run | Yrd Mat Min Mat Mat Fac Distress Signals 3 | . 2 . . 1 . Communications Jammed . | . . . . . . Distress Signals . | . . . . . . Times Spotted 90 | 1 29 . 12 15 33 Peak Tracking Total 8 | 1 8 . 5 8 7 Tactical Retreats 5 | . . . 2 1 2 Traps | -11 -10 -10 -9 -8 -7 ------- Run | Yrd Mat Min Mat Mat Fac Traps Triggered . | . . . . . . Indirectly . | . . . . . . Trap Hack Attempts . | . . . . . . Triggered . | . . . . . . Disarmed . | . . . . . . Reprogrammed . | . . . . . . Reused . | . . . . . . Traps Extracted . | . . . . . . Installed . | . . . . . . Triggered 1 | . . . . . 1 Machines | -11 -10 -10 -9 -8 -7 ---------- Run | Yrd Mat Min Mat Mat Fac Machines Disabled 6 | . 1 . . 1 4 Max in Single Turn 2 | . 1 . . 1 2 Machines Repaired . | . . . . . . Machines Dismantled . | . . . . . . Machines Sabotaged . | . . . . . . Overloaded Fab Kills . | . . . . . . Hacking | -11 -10 -10 -9 -8 -7 --------- Run | Yrd Mat Min Mat Mat Fac Machines Accessed 10 | . 1 1 6 . 2 Terminals 8 | . 1 . 5 . 2 Fabricators . | . . . . . . Repair Stations 1 | . . . 1 . . Recycling Units . | . . . . . . Scanalyzers . | . . . . . . Garrison Access . | . . . . . . Total Hacks 32 | . 7 1 18 . 6 Successful 12 | . 3 1 4 . 4 Failed 20 | . 4 . 14 . 2 Catastrophic 10 | . 2 . 6 . 2 Database Lockouts . | . . . . . . Manual 22 | . 8 . 12 . 2 Terminals 28 | . 7 . 15 . 6 Fabricators . | . . . . . . Repair Stations 3 | . . . 3 . . Recycling Units . | . . . . . . Scanalyzers . | . . . . . . Garrison Access . | . . . . . . Terminal Hacks 9 | . 3 1 1 . 4 Record 5 | . 1 . 1 . 3 Part Schematic 1 | . . . . . 1 Robot Analysis 1 | . 1 . . . . Open Door 1 | . . 1 . . . Zone Layout 1 | . 1 . . . . Fabricator Hacks . | . . . . . . Repair Station Hacks 3 | . . . 3 . . Scan Component 2 | . . . 2 . . Repair 1 | . . . 1 . . Recycling Unit Hacks . | . . . . . . Scanalyzer . | . . . . . . Garrison Access Hacks . | . . . . . . Unauthorized Hacks . | . . . . . . Terminals . | . . . . . . Fabricators . | . . . . . . Repair Stations . | . . . . . . Recycling Units . | . . . . . . Scanalyzers . | . . . . . . Garrison Access . | . . . . . . Data Cores Recovered . | . . . . . . Used . | . . . . . . Hacking Detections 8 | . 1 . 5 . 2 Full Trace Events 7 | . 1 . 4 . 2 Feedback Events . | . . . . . . Feedback Blocked . | . . . . . . Robot Schematics Acquired . | . . . . . . Robots Built . | . . . . . . Authchips . | . . . . . . Time . | . . . . . . Total Robot Build Rating . | . . . . . . Part Schematics Acquired 1 | . . . . . 1 Parts Built . | . . . . . . Authchips . | . . . . . . Time . | . . . . . . Total Part Build Rating . | . . . . . . Parts Repaired 1 | . . . 1 . . Time 26 | . . . 26 . . Parts Recycled . | . . . . . . Recycled Matter . | . . . . . . Retrieved Matter . | . . . . . . Retrieved Components . | . . . . . . Parts Scanalyzed . | . . . . . . Part Schematics Acquired . | . . . . . . Parts Damaged . | . . . . . . Bothacking | -11 -10 -10 -9 -8 -7 ------------ Run | Yrd Mat Min Mat Mat Fac Used RIF Installer . | . . . . . . Robots Hacked . | . . . . . . Non-combat . | . . . . . . Combat . | . . . . . . Robot Hacks Applied . | . . . . . . Relay Couplers Released . | . . . . . . Fabnet Peak Effective % . | . . . . . . Robots Rewired . | . . . . . . Allies Hacked . | . . . . . . Hacks Repelled . | . . . . . . Allies | -11 -10 -10 -9 -8 -7 -------- Run | Yrd Mat Min Mat Mat Fac Total Allies 1 | . . 1 . . . Largest Group 1 | . . 1 . . . Highest-Rated Group 31 | . . 31 . . . Highest-Rated Ally 31 | . . 31 . . . Total Orders 3 | . . . 3 . . EXPLORE 3 | . . . 3 . . Ally Attacks 15 | . . . 15 . . Total Damage 57 | . . . 57 . . Kills . | . . . . . . Allies Corrupted . | . . . . . . Allies Melted . | . . . . . . Intel | -11 -10 -10 -9 -8 -7 ------- Run | Yrd Mat Min Mat Mat Fac Robot Analysis Total 1 | . 1 . . . . Derelict Logs Recovered 1 | . . 1 . . . Drone Launches 3 | . . . 3 . . Drone Recoveries 2 | . . . 2 . . Exploration | -11 -10 -10 -9 -8 -7 ------------- Run | Yrd Mat Min Mat Mat Fac Turns Passed 5029 | 2129 552 248 442 464 1194 Spaces Moved 2022 | 246 328 274 263 247 664 Core 98 | 14 68 . . . 16 Treads . | . . . . . . Legs 1387 | 232 117 . 143 247 648 Wheels 537 | . 143 274 120 . . Hover . | . . . . . . Flight . | . . . . . . Fastest Speed 50 | 50 95 80 80 120 125 Average Speed 120 | 116 131 85 105 123 136 Slowest Speed 550 | 120 250 95 120 125 550 Overloaded Moves . | . . . . . . Propulsion Burnouts . | . . . . . . Robots Hopped . | . . . . . . Cave-ins Triggered . | . . . . . . Exploration Rate (%) 40 | 42 40 66 52 29 13 Regions Visited 5 Branch Regions 1 Pre-discovered Areas . | . . . . . . Known Exits Taken . | . . . . . . Unknown Exits Taken 5 | 1 1 1 1 1 . Scrap Searched 1 | . . 1 . . . Spaces Dug . | . . . . . . Terrain Destroyed 109 | . 26 . . 21 62 Melee . | . . . . . . Projectile 1 | . . . . . 1 AOE 108 | . 26 . . 21 61 Terrain Rammed . | . . . . . . Walls Destroyed . | . . . . . . Machines Disabled . | . . . . . . Actions | -11 -10 -10 -9 -8 -7 --------- Run | Yrd Mat Min Mat Mat Fac Total 4310 | 2083 387 283 354 380 823 Wait 1999 | 1816 9 . 30 99 45 Move 2017 | 245 327 273 262 246 664 Hop . | . . . . . . Pick Up 45 | 10 7 3 4 9 12 Fast Attach 3 | 1 . 1 . . 1 Attach 31 | 5 5 . 5 2 14 Detach . | . . . . . . Swap 22 | . 6 1 3 6 6 Drop 18 | . 1 2 5 4 6 Fire 166 | 6 32 3 41 14 70 Melee 4 | . . . . . 4 Ram . | . . . . . . Kick 5 | . . . 4 . 1 Crush . | . . . . . . Escape Stasis . | . . . . . . Rewire . | . . . . . . Trap . | . . . . . . Miscellaneous . | . . . . . . Route ------- -11/Scrapyard -10/Materials (discovered 2 exits: *Mat / *Min) -10/Mines -9/Materials (discovered 2 exits: [*Mat x2]) -8/Materials -7/Factory (discovered 1 exit: Sto) History --------- Turn | Location | Event 23 | -11/Scrapyard | Discovered new exit (range 15) 2036 | -11/Scrapyard | Assembled infested the area 2130 | -11/Scrapyard | Entered Materials 2134 | -10/Materials | Discovered new exit (range 14) 2154 | -10/Materials | Build established: Mutant 2304 | -10/Materials | Core integrity fell below 50% 2335 | -10/Materials | Discovered new exit (range 13) 2342 | -10/Materials | Destroyed 8 combat bots 2682 | -10/Materials | Entered Mines 2688 | -10/Mines | Found the Drone Emporium 2694 | -10/Mines | Found Prototype Device 2730 | -10/Mines | Found a damaged Exp. Sensor Array with a note attached 2732 | -10/Mines | Found Prototype Device 2847 | -10/Mines | Build established: Scavenger-Mutant 2851 | -10/Mines | Received a Rocket Launcher from a helpful Derelict 2892 | -10/Mines | Received a Mining Laser from a helpful Derelict 2919 | -10/Mines | Discovered new exit (range 11) 2930 | -10/Mines | Entered Materials 2930 | -9/Materials | Evolved 2 slots: Utility x2 2930 | -9/Materials | Identified Exp. Sensor Array 2931 | -9/Materials | Identified Thief Drone Bay 2959 | -9/Materials | Discovered new exit (range 74) 2984 | -9/Materials | Repaired Med. Laser 3325 | -9/Materials | Discovered new exit (range 14) 3372 | -9/Materials | Entered another Materials area 3372 | -8/Materials | Evolved 2 slots: Utility x2 3704 | -8/Materials | Build established: Skirmisher 3816 | -8/Materials | Discovered new exit (range 17) 3836 | -8/Materials | Entered Factory 3836 | -7/Factory | Evolved 2 slots: Utility x2 3837 | -7/Factory | Identified exit to Storage 4824 | -7/Factory | Cargo convoy interrupted 4898 | -7/Factory | Lost 4 parts (2n1u1w) 4936 | -7/Factory | Garrison activated, responded to threat 4988 | -7/Factory | Core integrity fell below 50% 5021 | -7/Factory | Core integrity fell below 20% 5030 | -7/Factory | Destroyed by G-47 Trooper with Particle Gun Last Messages --------------- 04993_ K-01 Serf collects debris. 04994_ U-05 Engineer lays Concrete. 04998_ K-01 Serf collects debris. 04998_ U-05 Engineer lays Concrete. 05002_ K-01 Serf collects debris. 05003_ U-05 Engineer lays Concrete. 05005_ G-47 Trooper knocked back. 05006_ K-01 Serf collects debris. 05006_ Critical hit (Burn: +37). 05008_ Imp. Terrain Scanner destroyed. 05009_ U-05 Engineer lays Concrete. 05012_ G-47 Trooper destroyed. 05013_ K-01 Serf collects debris. 05016_ Critical hit (Burn: +37). 05016_ Flail destroyed. 05019_ Integrated Corrupted Imp. Light Cannon (+2). 05019_ Complication: Mic. Nuclear Core rejected. 05023_ Hvy. Assault Rifle destroyed. 05030_ G-47 Trooper destroyed. Map ----- +----------------------------------------------------+ | ??# """ + % # #? | | ??# ! # # #? | | ??# "" """ + # #? | | ??# S"" """ ######## # # ### #? | | ??# "" """ #?##??# #?# #? | | ??# ####??# ### [ #? | | ??##############??#??# # #?# #? | | ?????????????#####?#?# #?# #? | | ??????????? ? ??# ### #? | | ??????????????# ???# ################? | | ????????? ????# ??## ###### ?????? | | ????????????#?# ??## ="% ?????? | | ???????? ?????# ???#!=! #??"??????? | | ??????? ?????# #####+####### #?????????? | | ??????????#?#?# k% = +?????????? | | ????????? ???## % * #?????????? | | ???????? ????## #?????????? | | ???? ?? ?#?# % #?????????? | | ????? ## # ??????? | | ??????####" % ??????? | | ??? ! ! ???????? | | ??? % !r! ???????? | | ??? ]!=k ???????? | | ??? #### ######g####### ##????????? | | ??????????## #??#%!%%= #???########?????????? | | ???????????## ??##?# Y @* ####???????#?????????? | | ????????????###??????# % ![[#?#?#????????????????? | | ??????????? ?????????# ![]#????????????????????? | | ?????????????????????# [[]#????????????????????? | | ??????????? ?????????# #????? ??????????????? | | ?????????????????????########????????????????????? | | ????????????????#???????????#???? ???????????????? | | ?????????????????????????????????????????????????? | | ??????????????#??????????????????????????????????? | | ?????????????????????????????????????????????????? | | ?????????????????????#???????????????????????????? | | ??????????????????????#?????? ???????????????????? | | ?????????????????????????????????????????????????? | | ??????????????????????????????#??????????????????? | | ????????????????????????#??????? ????????????????? | | ?????????????????????????????????????????????????? | | ?????????????????????????????????????????????????? | | ?????????????????????????????????????????????????? | | ?????????????????????????????????????????????????? | | ?????????????????????????????????????????????????? | | ?????????????????????????????????????????????????? | | ?????????????????????????????????????????????????? | | ?????????????????????????????????????????????????? | | ?????????????????????????????????????????????????? | | ?????????????????????????????????????????????????? | +----------------------------------------------------+ Best States ------------- Heat Dissipation 34 Energy Generation 15 Energy Capacity 265 Matter Stores 300 Matter Capacity 300 Sight Range 18 Robot Scan Range 20 Terrain Scan Range 16 Terrain Scan Density 10 Armor Coverage 225 Evasion (%) 55 Target Analysis 5 Core Analysis 6 Energy Filtering 30 Item Schematics ----------------- Lightning Gun | -7/Factory | Hacked Robot Schematics ------------------ None Fabricated ------------ Nothing Alien Tech Used ----------------- None Achievements -------------- Curiosity Killed The Cat Challenges ------------ None Game ------ Seed AutogunSupersonicFalx Manual? 0 Play Time 00:41:38 Cumulative 11.0 hours Start 2024.05.19 @ 16:25:27 End 2024.05.19 @ 17:15:48 Sessions 1 Manual Loads 0 Difficulty Rogue Special Mode None Game No. 24 Rogue 24 Adventurer 0 Explorer 0 Win Type - Total 0 Types 0/0/0/0/0/0/0/0/0 Lore% 13 Gallery% 16 Achievement% 17 Wizard Run 0 Options --------- Layout 1 ASCII 0 Keyboard 0 Movement Arrows Keybinds 0 Fullscreen 1 Font 24/Smallcaps Map View 50x35 Zoom Use 0% Tactical HUD 1 Map Filters NONE Filters NONE Steam 1 RUN: 5ffa59e0-f59e-4c4f-8fd6-8853cbe117e3